[Event "*** Titled Tuesday 3|2 Blitz"]
[Site "Chess.com"]
[Date "2016.01.05"]
[Round "8"]
[White "chorejason"]
[Black "kikydu96"]
[Result "0-1"]
[WhiteElo "1886"]
[BlackElo "2230"]
[TimeControl "180+2"]
[EndTime "12:34:42 PST"]
[Termination "kikydu96 won by resignation"]

1. e4 {[%clk 0:03:01.9]} 1... e5 {[%clk 0:02:59.5]} 2. d4 {[%clk 0:03:02.2]}
2... exd4 {[%clk 0:03:00.1]} 3. c3 {[%clk 0:03:03.6]} 3... dxc3 {[%clk
0:03:00.8]} 4. Bc4 {[%clk 0:03:04.7]} 4... cxb2 {[%clk 0:03:01.8]} 5. Bxb2
{[%clk 0:03:06]} 5... d5 {[%clk 0:03:03.5]} 6. Bxd5 {[%clk 0:03:07.2]} 6... Nf6
{[%clk 0:03:04.6]} 7. Nc3 {[%clk 0:03:08.5]} 7... Nxd5 {[%clk 0:03:03.2]} 8.
Nxd5 {[%clk 0:03:09.3]} 8... Be6 {[%clk 0:03:04.1]} 9. Qb3 {[%clk 0:02:53.4]}
9... c6 {[%clk 0:02:54.5]} 10. Qxb7 {[%clk 0:02:50.9]} 10... cxd5 {[%clk
0:02:55.4]} 11. Qxa8 {[%clk 0:02:51.9]} 11... Bb4+ {[%clk 0:02:55.1]} 12. Ke2
{[%clk 0:02:38.1]} 12... O-O {[%clk 0:02:46.9]} 13. Rd1 {[%clk 0:02:29.4]} 13...
Qa5 {[%clk 0:02:33.5]} 14. a3 {[%clk 0:02:16.1]} 14... Qb5+ {[%clk 0:02:30.9]}
15. Kf3 {[%clk 0:02:17.5]} 15... Bd6 {[%clk 0:02:20.9]} 16. Rxd5 {[%clk
0:02:09.9]} 16... Qb3+ {[%clk 0:02:13.2]} 17. Ke2 {[%clk 0:02:10.2]} 17... Qxb2+
{[%clk 0:02:13]} 18. Rd2 {[%clk 0:02:11.2]} 18... Bc4+ {[%clk 0:02:07.8]} 19.
Ke1 {[%clk 0:02:07.9]} 19... Qc1+ {[%clk 0:01:53.8]} 20. Rd1 {[%clk 0:02:09.2]}
20... Qc3+ {[%clk 0:01:54.3]} 21. Rd2 {[%clk 0:02:10.6]} 21... Bf4 {[%clk
0:01:51.9]} 22. Nf3 {[%clk 0:02:11.2]} 22... Rd8 {[%clk 0:01:50.1]} 0-1

[Event "*** Titled Tuesday 3|2 Blitz"]
[Site "Chess.com"]
[Date "2016.01.05"]
[Round "8"]
[White "TomsKantans"]
[Black "AndroQueen"]
[Result "1-0"]
[WhiteElo "2381"]
[BlackElo "2442"]
[TimeControl "180+2"]
[EndTime "12:34:45 PST"]
[Termination "TomsKantans won by resignation"]

1. e4 {[%clk 0:03:00]} 1... e6 {[%clk 0:03:00.6]} 2. c4 {[%clk 0:02:58.9]} 2...
d5 {[%clk 0:02:57.7]} 3. cxd5 {[%clk 0:03:00.8]} 3... exd5 {[%clk 0:02:58.9]} 4.
exd5 {[%clk 0:03:02.7]} 4... Nf6 {[%clk 0:02:59.2]} 5. Nc3 {[%clk 0:03:04.6]}
5... Nxd5 {[%clk 0:02:58.3]} 6. Nf3 {[%clk 0:03:05.7]} 6... Be7 {[%clk
0:02:55.1]} 7. d4 {[%clk 0:03:05.7]} 7... O-O {[%clk 0:02:56]} 8. Bd3 {[%clk
0:03:06.7]} 8... Nc6 {[%clk 0:02:48.3]} 9. O-O {[%clk 0:03:07.4]} 9... Bg4
{[%clk 0:02:45]} 10. h3 {[%clk 0:03:08.2]} 10... Bh5 {[%clk 0:02:45.7]} 11.
Bxh7+ {[%clk 0:03:08.2]} 11... Kxh7 {[%clk 0:02:41.8]} 12. Ng5+ {[%clk
0:03:09.2]} 12... Kg6 {[%clk 0:02:13.9]} 13. Qd3+ {[%clk 0:03:09.2]} 13... f5
{[%clk 0:02:14.5]} 14. Ne6 {[%clk 0:03:10]} 14... Nxc3 {[%clk 0:01:43.3]} 15.
Nxd8 {[%clk 0:02:46.5]} 15... Ne2+ {[%clk 0:01:35]} 16. Kh1 {[%clk 0:02:47.4]}
16... Nxc1 {[%clk 0:01:17.5]} 17. Qg3+ {[%clk 0:02:44.3]} 17... Bg4 {[%clk
0:01:01.7]} 18. Nxc6 {[%clk 0:02:37.8]} 18... Ne2 {[%clk 0:00:32.8]} 19. Nxe7+
{[%clk 0:02:35.8]} 1-0

[Event "*** Titled Tuesday 3|2 Blitz"]
[Site "Chess.com"]
[Date "2016.01.05"]
[Round "8"]
[White "gumersindo"]
[Black "Malev212"]
[Result "0-1"]
[WhiteElo "2282"]
[BlackElo "2280"]
[TimeControl "180+2"]
[EndTime "12:35:58 PST"]
[Termination "Malev212 won by resignation"]

1. d4 {[%clk 0:03:01.9]} 1... Nf6 {[%clk 0:02:58.6]} 2. c4 {[%clk 0:03:02.7]}
2... g6 {[%clk 0:02:59.3]} 3. Nc3 {[%clk 0:03:03.4]} 3... Bg7 {[%clk 0:03:00.8]}
4. e4 {[%clk 0:03:04]} 4... d6 {[%clk 0:03:02.4]} 5. Nf3 {[%clk 0:03:05.3]} 5...
O-O {[%clk 0:03:03.8]} 6. Be2 {[%clk 0:03:06.8]} 6... Bg4 {[%clk 0:03:04.5]} 7.
Ng1 {[%clk 0:03:06.2]} 7... Bd7 {[%clk 0:03:03.8]} 8. Be3 {[%clk 0:03:06.5]}
8... Na6 {[%clk 0:03:02.9]} 9. h3 {[%clk 0:03:05.6]} 9... c5 {[%clk 0:03:03.3]}
10. d5 {[%clk 0:03:05.2]} 10... e6 {[%clk 0:03:04.7]} 11. Nf3 {[%clk 0:03:04.6]}
11... exd5 {[%clk 0:03:05.1]} 12. cxd5 {[%clk 0:03:05.7]} 12... Re8 {[%clk
0:03:04.3]} 13. Nd2 {[%clk 0:03:05.7]} 13... b5 {[%clk 0:03:04.2]} 14. Nxb5
{[%clk 0:02:58.6]} 14... Nxe4 {[%clk 0:03:00.5]} 15. Nxe4 {[%clk 0:02:57.4]}
15... Rxe4 {[%clk 0:02:49.7]} 16. Nc3 {[%clk 0:02:48.1]} 16... Rxe3 {[%clk
0:02:49.6]} 17. fxe3 {[%clk 0:02:45.8]} 17... Qh4+ {[%clk 0:02:49.8]} 18. Kf1
{[%clk 0:02:41.7]} 18... c4 {[%clk 0:02:50.4]} 19. Qe1 {[%clk 0:02:40.2]} 19...
Qg5 {[%clk 0:02:37.3]} 20. Qf2 {[%clk 0:02:36.3]} 20... Nc5 {[%clk 0:02:37.3]}
21. Qf4 {[%clk 0:02:31.3]} 21... Qe7 {[%clk 0:02:35.5]} 22. Bxc4 {[%clk
0:02:28.4]} 22... Rb8 {[%clk 0:02:36.6]} 23. Nd1 {[%clk 0:02:22]} 23... Rb4
{[%clk 0:02:34]} 24. Rc1 {[%clk 0:01:58.9]} 24... Nd3 {[%clk 0:02:34.1]} 25.
Bxd3 {[%clk 0:02:00]} 25... Rxf4+ {[%clk 0:02:33.9]} 26. exf4 {[%clk 0:02:01.2]}
26... Qh4 {[%clk 0:02:30.4]} 27. Rc4 {[%clk 0:01:41.3]} 27... Qg3 {[%clk
0:02:23.4]} 28. Nf2 {[%clk 0:01:35.6]} 28... Bxb2 {[%clk 0:02:14.8]} 29. h4
{[%clk 0:01:34.9]} 29... h5 {[%clk 0:02:13.9]} 30. Be2 {[%clk 0:01:27.1]} 30...
Kg7 {[%clk 0:02:11]} 31. Rc2 {[%clk 0:01:20.9]} 31... Bd4 {[%clk 0:02:07.4]} 32.
Bf3 {[%clk 0:01:20.9]} 32... Qxf4 {[%clk 0:02:05.8]} 33. Kg1 {[%clk 0:01:12.5]}
33... Bf5 {[%clk 0:02:03.4]} 34. Rc7 {[%clk 0:01:06.6]} 34... Qg3 {[%clk
0:01:59.8]} 0-1

[Event "*** Titled Tuesday 3|2 Blitz"]
[Site "Chess.com"]
[Date "2016.01.05"]
[Round "8"]
[White "Moltini"]
[Black "ftorodent"]
[Result "0-1"]
[WhiteElo "2188"]
[BlackElo "2282"]
[TimeControl "180+2"]
[EndTime "12:36:09 PST"]
[Termination "ftorodent won by resignation"]

1. d4 {[%clk 0:03:01.9]} 1... f5 {[%clk 0:02:59.8]} 2. g3 {[%clk 0:03:02.2]}
2... Nf6 {[%clk 0:02:59.5]} 3. Bg2 {[%clk 0:03:03.4]} 3... g6 {[%clk 0:03:00.6]}
4. Nf3 {[%clk 0:02:55.5]} 4... Bg7 {[%clk 0:03:01.2]} 5. c4 {[%clk 0:02:56.8]}
5... O-O {[%clk 0:03:02]} 6. O-O {[%clk 0:02:58]} 6... d6 {[%clk 0:03:03.1]} 7.
d5 {[%clk 0:02:53.3]} 7... a5 {[%clk 0:03:03]} 8. Nd4 {[%clk 0:02:54.3]} 8...
Na6 {[%clk 0:03:02.8]} 9. Nc3 {[%clk 0:02:55.4]} 9... Nc5 {[%clk 0:02:59.6]} 10.
b3 {[%clk 0:02:52.3]} 10... Bd7 {[%clk 0:02:57.8]} 11. Bb2 {[%clk 0:02:47.3]}
11... Qe8 {[%clk 0:02:54.3]} 12. Re1 {[%clk 0:02:41.3]} 12... c6 {[%clk
0:02:48]} 13. Rc1 {[%clk 0:02:31.9]} 13... Rc8 {[%clk 0:02:47.7]} 14. Ba3 {[%clk
0:02:29.9]} 14... Nce4 {[%clk 0:02:43]} 15. Nxe4 {[%clk 0:02:28.9]} 15... Nxe4
{[%clk 0:02:44.1]} 16. f3 {[%clk 0:02:30.2]} 16... Nf6 {[%clk 0:02:37.1]} 17. e4
{[%clk 0:02:31.3]} 17... fxe4 {[%clk 0:02:37.2]} 18. fxe4 {[%clk 0:02:32.4]}
18... Ng4 {[%clk 0:02:32.3]} 19. h3 {[%clk 0:02:30.3]} 19... Nf2 {[%clk
0:02:31.7]} 20. Qd2 {[%clk 0:02:26.3]} 20... Nxh3+ {[%clk 0:02:32.1]} 21. Kh2
{[%clk 0:02:27.1]} 21... Rf2 {[%clk 0:02:28.2]} 22. Qe3 {[%clk 0:02:28.3]} 22...
Rxa2 {[%clk 0:02:26.6]} 23. Ne6 {[%clk 0:02:22.4]} 23... Bxe6 {[%clk 0:02:21.9]}
24. dxe6 {[%clk 0:02:23.4]} 24... Rxa3 {[%clk 0:02:12.2]} 25. Bxh3 {[%clk
0:02:19.1]} 25... a4 {[%clk 0:02:09.2]} 26. Rb1 {[%clk 0:02:19.4]} 26... axb3
{[%clk 0:01:54.4]} 27. Rxb3 {[%clk 0:02:18.3]} 27... Rxb3 {[%clk 0:01:53.7]} 28.
Qxb3 {[%clk 0:02:19.2]} 28... Rb8 {[%clk 0:01:51.5]} 29. Rf1 {[%clk 0:02:20.4]}
29... Bf6 {[%clk 0:01:47.7]} 30. Rb1 {[%clk 0:02:19.3]} 30... b5 {[%clk
0:01:45.3]} 31. cxb5 {[%clk 0:02:11.5]} 31... Rxb5 {[%clk 0:01:46]} 32. Qc2
{[%clk 0:02:12.9]} 32... Rxb1 {[%clk 0:01:43]} 33. Qxb1 {[%clk 0:02:11]} 33...
Qa8 {[%clk 0:01:43.2]} 34. Qb6 {[%clk 0:02:11.1]} 34... Kg7 {[%clk 0:01:43.1]}
35. Bg2 {[%clk 0:02:07.1]} 35... Be5 {[%clk 0:01:44]} 36. Qc7 {[%clk 0:02:07.5]}
36... Qf8 {[%clk 0:01:42]} 37. Qb6 {[%clk 0:01:59.9]} 37... c5 {[%clk
0:01:37.2]} 38. Qb3 {[%clk 0:02:00.9]} 38... Qf6 {[%clk 0:01:37.3]} 39. Qe3
{[%clk 0:01:58.6]} 39... c4 {[%clk 0:01:37.5]} 40. Kh1 {[%clk 0:01:56]} 40... c3
{[%clk 0:01:37.2]} 41. Qe2 {[%clk 0:01:57]} 41... Bxg3 {[%clk 0:01:36]} 0-1

[Event "*** Titled Tuesday 3|2 Blitz"]
[Site "Chess.com"]
[Date "2016.01.05"]
[Round "8"]
[White "the_drake"]
[Black "aspired"]
[Result "0-1"]
[WhiteElo "2023"]
[BlackElo "2347"]
[TimeControl "180+2"]
[EndTime "12:36:30 PST"]
[Termination "aspired won by resignation"]

1. e4 {[%clk 0:03:01.9]} 1... e5 {[%clk 0:03:00.4]} 2. Nf3 {[%clk 0:03:02.6]}
2... Nc6 {[%clk 0:03:01.4]} 3. Bc4 {[%clk 0:03:03.7]} 3... Bc5 {[%clk
0:03:01.4]} 4. b4 {[%clk 0:03:04.9]} 4... Bxb4 {[%clk 0:03:01.8]} 5. c3 {[%clk
0:03:06.1]} 5... Be7 {[%clk 0:03:02.7]} 6. d4 {[%clk 0:03:07.2]} 6... Na5 {[%clk
0:03:03.4]} 7. Nxe5 {[%clk 0:02:53.9]} 7... Nxc4 {[%clk 0:03:03.7]} 8. Nxc4
{[%clk 0:02:54.7]} 8... d5 {[%clk 0:03:04.5]} 9. exd5 {[%clk 0:02:50.5]} 9...
Qxd5 {[%clk 0:03:06.4]} 10. Ne3 {[%clk 0:02:51.9]} 10... Qa5 {[%clk 0:03:01.1]}
11. O-O {[%clk 0:02:50.7]} 11... Nf6 {[%clk 0:03:01.4]} 12. Re1 {[%clk 0:02:26]}
12... Be6 {[%clk 0:02:59.3]} 13. c4 {[%clk 0:02:20.1]} 13... c6 {[%clk
0:02:55.1]} 14. d5 {[%clk 0:02:00.1]} 14... cxd5 {[%clk 0:02:55.3]} 15. cxd5
{[%clk 0:02:01.1]} 15... Nxd5 {[%clk 0:02:42.4]} 16. Nxd5 {[%clk 0:02:01.6]}
16... Qxd5 {[%clk 0:02:40.3]} 17. Qa4+ {[%clk 0:01:25.9]} 17... b5 {[%clk
0:02:23.9]} 18. Qc2 {[%clk 0:01:09.9]} 18... Bf6 {[%clk 0:02:19]} 19. Nc3 {[%clk
0:01:03.2]} 19... Qc6 {[%clk 0:02:19]} 20. Bb2 {[%clk 0:00:57]} 20... Rc8 {[%clk
0:02:09.1]} 21. a3 {[%clk 0:00:06.7]} 21... Bxc3 {[%clk 0:01:48.2]} 22. Rec1
{[%clk 0:00:04.8]} 22... Bxb2 {[%clk 0:01:39.7]} 23. Qxc6+ {[%clk 0:00:06.7]}
23... Rxc6 {[%clk 0:01:40.1]} 24. Rxc6 {[%clk 0:00:08.6]} 0-1

[Event "*** Titled Tuesday 3|2 Blitz"]
[Site "Chess.com"]
[Date "2016.01.05"]
[Round "8"]
[White "MapleDanish"]
[Black "ER404"]
[Result "1-0"]
[WhiteElo "2080"]
[BlackElo "2114"]
[TimeControl "180+2"]
[EndTime "12:36:52 PST"]
[Termination "MapleDanish won by resignation"]

1. c4 {[%clk 0:03:01.9]} 1... c5 {[%clk 0:02:47.2]} 2. g3 {[%clk 0:03:01]} 2...
g6 {[%clk 0:02:45.3]} 3. Bg2 {[%clk 0:03:02.4]} 3... Bg7 {[%clk 0:02:47.2]} 4.
Nc3 {[%clk 0:03:03.5]} 4... e5 {[%clk 0:02:45.5]} 5. Nf3 {[%clk 0:03:03.4]} 5...
Ne7 {[%clk 0:02:41.7]} 6. a3 {[%clk 0:03:00.7]} 6... Nbc6 {[%clk 0:02:42.2]} 7.
O-O {[%clk 0:03:00.5]} 7... d6 {[%clk 0:02:43.2]} 8. b4 {[%clk 0:03:01.2]} 8...
cxb4 {[%clk 0:02:27.9]} 9. axb4 {[%clk 0:03:01.5]} 9... Nxb4 {[%clk 0:02:29.2]}
10. Ba3 {[%clk 0:03:02.9]} 10... Nec6 {[%clk 0:02:04.3]} 11. Qa4 {[%clk
0:02:38.7]} 11... Na6 {[%clk 0:01:41.8]} 12. Nxe5 {[%clk 0:02:19.3]} 12... Bxe5
{[%clk 0:01:22.2]} 13. Bxc6+ {[%clk 0:02:19.7]} 13... bxc6 {[%clk 0:01:20.2]}
14. Qxc6+ {[%clk 0:02:21]} 14... Bd7 {[%clk 0:01:04.2]} 15. Qxa6 {[%clk
0:02:22.3]} 15... O-O {[%clk 0:00:58.9]} 16. Bxd6 {[%clk 0:02:22.6]} 16... Bxc3
{[%clk 0:00:41.8]} 17. dxc3 {[%clk 0:02:06.8]} 17... Re8 {[%clk 0:00:39.7]} 18.
Rfd1 {[%clk 0:02:02.3]} 18... Rxe2 {[%clk 0:00:28.6]} 19. Bf4 {[%clk 0:02:00.3]}
19... Qe7 {[%clk 0:00:21.5]} 20. Qb7 {[%clk 0:01:56.8]} 20... Re8 {[%clk
0:00:11.4]} 21. Rxd7 {[%clk 0:01:53.9]} 21... Re1+ {[%clk 0:00:11.6]} 22. Rxe1
{[%clk 0:01:55.5]} 22... Qxe1+ {[%clk 0:00:12.6]} 23. Kg2 {[%clk 0:01:57.4]}
23... Re2 {[%clk 0:00:10.7]} 24. Be3 {[%clk 0:01:42.9]} 24... Rxe3 {[%clk
0:00:05.4]} 25. Rxf7 {[%clk 0:01:32]} 25... Re8 {[%clk 0:00:02]} 26. Rg7+ {[%clk
0:01:32.5]} 1-0

[Event "*** Titled Tuesday 3|2 Blitz"]
[Site "Chess.com"]
[Date "2016.01.05"]
[Round "8"]
[White "DeviatkinAndrey"]
[Black "RitchieBlackmore"]
[Result "0-1"]
[WhiteElo "2478"]
[BlackElo "2438"]
[TimeControl "180+2"]
[EndTime "12:37:25 PST"]
[Termination "RitchieBlackmore won by resignation"]

1. d4 {[%clk 0:03:01.9]} 1... g6 {[%clk 0:02:55.8]} 2. e4 {[%clk 0:02:58.7]}
2... Bg7 {[%clk 0:02:56.9]} 3. Nc3 {[%clk 0:02:57.8]} 3... d6 {[%clk 0:02:57.8]}
4. g3 {[%clk 0:02:58.5]} 4... Nf6 {[%clk 0:02:58.5]} 5. Bg2 {[%clk 0:02:59.1]}
5... O-O {[%clk 0:02:59.3]} 6. Nge2 {[%clk 0:03:00.3]} 6... e5 {[%clk
0:02:59.8]} 7. h3 {[%clk 0:02:59.8]} 7... exd4 {[%clk 0:02:58.7]} 8. Nxd4 {[%clk
0:03:00.5]} 8... Bd7 {[%clk 0:03:00.4]} 9. O-O {[%clk 0:03:01]} 9... Nc6 {[%clk
0:03:00.5]} 10. Be3 {[%clk 0:02:41.2]} 10... Re8 {[%clk 0:03:01]} 11. Nde2
{[%clk 0:02:35.4]} 11... h5 {[%clk 0:02:59.7]} 12. Qd2 {[%clk 0:02:33.8]} 12...
h4 {[%clk 0:02:56.5]} 13. g4 {[%clk 0:02:33.8]} 13... Ne5 {[%clk 0:02:55.1]} 14.
b3 {[%clk 0:02:30.6]} 14... Bxg4 {[%clk 0:02:51.7]} 15. hxg4 {[%clk 0:02:16.3]}
15... h3 {[%clk 0:02:52.7]} 16. f3 {[%clk 0:01:58.8]} 16... hxg2 {[%clk
0:02:51.6]} 17. Kxg2 {[%clk 0:02:00.2]} 17... Qd7 {[%clk 0:02:41.6]} 18. Ng3
{[%clk 0:01:57.2]} 18... b5 {[%clk 0:02:42.7]} 19. Rad1 {[%clk 0:01:47.8]} 19...
b4 {[%clk 0:02:40.4]} 20. Nce2 {[%clk 0:01:37.8]} 20... a5 {[%clk 0:02:41.5]}
21. Nf4 {[%clk 0:01:35]} 21... Nxf3 {[%clk 0:02:37.8]} 22. Rxf3 {[%clk
0:01:34.1]} 22... Qxg4 {[%clk 0:02:36.2]} 23. Rdf1 {[%clk 0:00:33.8]} 23... Nxe4
{[%clk 0:02:31.8]} 24. Qd3 {[%clk 0:00:18.9]} 24... Ng5 {[%clk 0:02:33.1]} 25.
R3f2 {[%clk 0:00:16.3]} 25... Re5 {[%clk 0:02:34]} 26. Rh1 {[%clk 0:00:16.2]}
26... Rae8 {[%clk 0:02:31.8]} 27. Bd4 {[%clk 0:00:16.7]} 27... Re4 {[%clk
0:02:29.7]} 28. Bxg7 {[%clk 0:00:17.4]} 28... Re3 {[%clk 0:02:00.1]} 29. Rh8+
{[%clk 0:00:03.8]} 29... Kxg7 {[%clk 0:01:58.6]} 30. Qd4+ {[%clk 0:00:05.4]}
30... R8e5 {[%clk 0:01:52.5]} 31. Nh5+ {[%clk 0:00:03.1]} 31... gxh5 {[%clk
0:01:51.1]} 32. Qxg4 {[%clk 0:00:02.1]} 32... hxg4 {[%clk 0:01:53]} 33. Nf5+
{[%clk 0:00:03.7]} 33... Kxh8 {[%clk 0:01:53.4]} 34. Nxe3 {[%clk 0:00:04.5]}
34... Rxe3 {[%clk 0:01:55.3]} 35. Rf5 {[%clk 0:00:06.4]} 35... Re5 {[%clk
0:01:56.3]} 36. Rf4 {[%clk 0:00:07.2]} 36... Kg7 {[%clk 0:01:55.8]} 37. Rxg4
{[%clk 0:00:08.2]} 37... Kg6 {[%clk 0:01:57.3]} 38. Rc4 {[%clk 0:00:08.8]} 38...
c5 {[%clk 0:01:58.2]} 0-1

[Event "*** Titled Tuesday 3|2 Blitz"]
[Site "Chess.com"]
[Date "2016.01.05"]
[Round "8"]
[White "oskariot"]
[Black "AsafGivon"]
[Result "0-1"]
[WhiteElo "2322"]
[BlackElo "2286"]
[TimeControl "180+2"]
[EndTime "12:37:51 PST"]
[Termination "AsafGivon won by resignation"]

1. e4 {[%clk 0:02:53.5]} 1... c5 {[%clk 0:03:00.8]} 2. Nf3 {[%clk 0:02:54.4]}
2... e6 {[%clk 0:03:01.9]} 3. d4 {[%clk 0:02:55.7]} 3... cxd4 {[%clk 0:03:03.8]}
4. Nxd4 {[%clk 0:02:57.6]} 4... Nc6 {[%clk 0:03:05.1]} 5. Nc3 {[%clk 0:02:59.1]}
5... Qc7 {[%clk 0:03:05.9]} 6. Be2 {[%clk 0:03:00.6]} 6... Nf6 {[%clk 0:03:06]}
7. O-O {[%clk 0:03:02.2]} 7... Be7 {[%clk 0:03:07.3]} 8. Be3 {[%clk 0:03:00.1]}
8... O-O {[%clk 0:03:07.3]} 9. f4 {[%clk 0:02:59.7]} 9... d6 {[%clk 0:03:08.5]}
10. Kh1 {[%clk 0:03:00.6]} 10... Nxd4 {[%clk 0:03:07.3]} 11. Bxd4 {[%clk
0:03:01.8]} 11... e5 {[%clk 0:03:06.3]} 12. Be3 {[%clk 0:03:02.8]} 12... b6
{[%clk 0:03:07]} 13. Bd3 {[%clk 0:02:46.7]} 13... Bb7 {[%clk 0:03:06.8]} 14. Qe1
{[%clk 0:02:47.4]} 14... Ng4 {[%clk 0:03:00]} 15. Bd2 {[%clk 0:02:40.6]} 15...
exf4 {[%clk 0:03:00.1]} 16. Bxf4 {[%clk 0:02:36.5]} 16... Ne5 {[%clk 0:02:50.6]}
17. Qg3 {[%clk 0:02:36.1]} 17... a6 {[%clk 0:02:41.4]} 18. a4 {[%clk 0:02:33.5]}
18... Rae8 {[%clk 0:02:20.4]} 19. Rae1 {[%clk 0:02:32.2]} 19... Ng6 {[%clk
0:02:21.5]} 20. Bd2 {[%clk 0:02:20.5]} 20... Bh4 {[%clk 0:02:21.5]} 21. Qh3
{[%clk 0:02:16.1]} 21... Bxe1 {[%clk 0:02:19.2]} 22. Rxe1 {[%clk 0:02:18]} 22...
Re5 {[%clk 0:02:12.3]} 23. Rf1 {[%clk 0:02:17.2]} 23... Qe7 {[%clk 0:02:01.5]}
24. Be3 {[%clk 0:02:15.7]} 24... d5 {[%clk 0:01:46.8]} 25. Bd4 {[%clk
0:02:00.5]} 25... dxe4 {[%clk 0:01:47.4]} 26. Bc4 {[%clk 0:01:49.1]} 26... e3
{[%clk 0:01:10.3]} 27. Bxe5 {[%clk 0:01:24.2]} 27... Qxe5 {[%clk 0:01:11]} 28.
Qd7 {[%clk 0:01:17.1]} 28... Qe7 {[%clk 0:01:01.4]} 29. Qxe7 {[%clk 0:01:04.7]}
29... Nxe7 {[%clk 0:01:03.3]} 30. Rf3 {[%clk 0:01:05.9]} 30... Bxf3 {[%clk
0:01:03.6]} 31. gxf3 {[%clk 0:01:06.5]} 31... Nf5 {[%clk 0:00:53.6]} 32. Bxa6
{[%clk 0:01:06.3]} 32... Nd4 {[%clk 0:00:55]} 33. Kg2 {[%clk 0:01:02.7]} 33...
Nxc2 {[%clk 0:00:53.1]} 34. Nd5 {[%clk 0:01:03.9]} 34... Rd8 {[%clk 0:00:50.2]}
35. Bc4 {[%clk 0:00:59.2]} 35... e2 {[%clk 0:00:47.4]} 0-1

[Event "*** Titled Tuesday 3|2 Blitz"]
[Site "Chess.com"]
[Date "2016.01.05"]
[Round "8"]
[White "stepanosinovsky"]
[Black "Colombiano07"]
[Result "1-0"]
[WhiteElo "2256"]
[BlackElo "2167"]
[TimeControl "180+2"]
[EndTime "12:37:56 PST"]
[Termination "stepanosinovsky won by resignation"]

1. e4 {[%clk 0:03:01.9]} 1... c5 {[%clk 0:03:00.4]} 2. Nf3 {[%clk 0:03:02.4]}
2... Nc6 {[%clk 0:03:01.2]} 3. Nc3 {[%clk 0:03:02.9]} 3... d6 {[%clk 0:03:01.3]}
4. d4 {[%clk 0:03:01.2]} 4... cxd4 {[%clk 0:03:01.9]} 5. Nxd4 {[%clk 0:03:03.1]}
5... Nf6 {[%clk 0:03:03.4]} 6. Be3 {[%clk 0:03:02.2]} 6... e5 {[%clk 0:02:50.6]}
7. Nb3 {[%clk 0:02:56.2]} 7... h6 {[%clk 0:02:47.3]} 8. Qd2 {[%clk 0:02:54]}
8... Be6 {[%clk 0:02:46.4]} 9. O-O-O {[%clk 0:02:52.4]} 9... Be7 {[%clk
0:02:45]} 10. f4 {[%clk 0:02:50.3]} 10... Ng4 {[%clk 0:02:40]} 11. g3 {[%clk
0:02:40.5]} 11... Nxe3 {[%clk 0:02:30.7]} 12. Qxe3 {[%clk 0:02:40.9]} 12... O-O
{[%clk 0:02:27.5]} 13. Kb1 {[%clk 0:02:41.5]} 13... a5 {[%clk 0:02:25.1]} 14. f5
{[%clk 0:02:37]} 14... Bxb3 {[%clk 0:02:20.8]} 15. cxb3 {[%clk 0:02:37.5]} 15...
Nd4 {[%clk 0:02:19.3]} 16. Bc4 {[%clk 0:02:36.4]} 16... Rc8 {[%clk 0:02:03.9]}
17. g4 {[%clk 0:02:31.4]} 17... Rc5 {[%clk 0:02:02.9]} 18. Qd3 {[%clk
0:01:47.6]} 18... Bh4 {[%clk 0:01:51.7]} 19. Ne2 {[%clk 0:01:33.4]} 19... b5
{[%clk 0:01:51.4]} 20. Bd5 {[%clk 0:01:32.1]} 20... Nxe2 {[%clk 0:01:49.1]} 21.
Qxe2 {[%clk 0:01:33.6]} 21... Qc7 {[%clk 0:01:48.8]} 22. Rc1 {[%clk 0:01:32.4]}
22... Rc8 {[%clk 0:01:45.2]} 23. Rxc5 {[%clk 0:01:30.2]} 23... Qxc5 {[%clk
0:01:47]} 24. a3 {[%clk 0:01:26.3]} 24... Kf8 {[%clk 0:01:39.5]} 25. Qd2 {[%clk
0:01:17.4]} 25... b4 {[%clk 0:01:14.8]} 26. a4 {[%clk 0:01:17.1]} 26... Bg5
{[%clk 0:01:10.5]} 27. Qd3 {[%clk 0:01:12.5]} 27... Qf2 {[%clk 0:01:03.4]} 28.
h4 {[%clk 0:00:50.4]} 28... Bxh4 {[%clk 0:00:57.2]} 29. Bc4 {[%clk 0:00:51.3]}
29... Ke7 {[%clk 0:00:32.8]} 30. Qd5 {[%clk 0:00:49]} 30... Rf8 {[%clk
0:00:32.8]} 31. Qxa5 {[%clk 0:00:35.1]} 31... Bg5 {[%clk 0:00:29.1]} 32. Qc7+
{[%clk 0:00:32.8]} 1-0